bitfinex/quotes_ETHUSD_20241109
["timestamp","ask_amount","ask_price","bid_price","bid_amount"]
[1731194288866,4.69341718,3140.0,3139.9,1.37439556]
[1731194289190,4.69341718,3140.0,3139.7,1.73935561]
[1731194289497,4.69341718,3140.0,3139.7,3.08323444]
[1731194290059,5.24841718,3140.0,3139.4,3.08323444]
[1731194291274,5.24841718,3140.0,3138.8,0.8186]
[1731194291480,0.60595172,3139.9,3139.1,3.73742243]
[1731194291770,5.24841718,3140.0,3139.5,3.73742243]
[1731194292103,5.80341718,3140.0,3139.5,3.73742243]
[1731194294267,6.35841718,3140.0,3139.5,3.73742243]
[1731194294691,6.35841718,3140.0,3139.6,0.06369591]
[1731194295210,6.35841718,3140.0,3139.9,3.73742243]
[1731194296403,6.91341718,3140.0,3139.9,3.73742243]
[1731194296983,6.91341718,3140.0,3139.9,7.11116467]
[1731194297190,6.19724572,3140.0,3139.9,7.11116467]
[1731194297514,6.19724572,3140.0,3139.9,6.80654267]
[1731194298506,6.75224572,3140.0,3139.9,6.80654267]
[1731194300201,6.75224572,3140.0,3139.9,6.35633643]
[1731194300567,7.30724572,3140.0,3139.9,6.35633643]
[1731194301075,7.30615818,3140.0,3139.9,6.35633643]
[1731194302289,7.30615818,3140.0,3139.9,6.92734814]
[1731194302827,7.86115818,3140.0,3139.9,7.5410397]
[1731194303100,7.86115818,3140.0,3139.9,7.82260006]
[1731194303666,7.86115818,3140.0,3139.9,6.92734814]
[1731194303866,7.86115818,3140.0,3139.9,6.92735052]
[1731194304102,7.86115818,3140.0,3139.9,3.57101409]
[1731194304268,7.86115818,3140.0,3139.9,6.73742243]
[1731194304671,8.41615818,3140.0,3139.9,6.73742243]
[1731194304882,8.41615818,3140.0,3139.8,0.63076256]
[1731194305123,8.41615818,3140.0,3139.8,3.63076256]
[1731194305492,8.41615818,3140.0,3139.9,0.57103416]
[1731194305887,10.183374,3140.0,3139.9,0.57103416]
[1731194306104,10.183374,3140.0,3139.0,1.19304951]
[1731194306403,10.183374,3140.0,3139.1,0.57103416]
[1731194306602,10.183374,3140.0,3139.2,0.57103416]
[1731194306818,10.738374,3140.0,3139.3,0.57103416]
[1731194306999,1.0738374,3139.9,3139.4,0.57103416]
[1731194307208,1.0738374,3139.9,3139.0,3.62201535]
[1731194307209,1.0738374,3139.9,3139.5,0.57134523]
[1731194307410,1.0738374,3139.9,3139.6,0.57134523]
[1731194307610,1.0738374,3139.9,3139.7,0.57134523]
[1731194307814,1.08595956,3139.8,3139.7,0.57134523]
[1731194308032,1.08595956,3139.8,3139.1,0.57134523]
[1731194308229,1.08595956,3139.8,3139.2,0.57134523]
[1731194308390,1.08595956,3139.8,3139.3,0.57134523]
[1731194308591,9.78575818,3140.0,3139.4,0.63504977]
[1731194308793,10.34075818,3140.0,3139.9,0.47603021]
[1731194309089,10.34075818,3140.0,3139.6,0.57134523]
[1731194309289,10.34075818,3140.0,3139.8,0.47597906]
[1731194310520,10.34075818,3140.0,3139.7,0.47597906]
[1731194310834,0.8146,3139.8,3139.6,0.47597906]
[1731194311001,0.8146,3139.8,3139.1,3.0]
[1731194311002,0.8146,3139.8,3139.3,0.47597906]
[1731194311194,0.8146,3139.8,3139.2,0.47618338]
[1731194311433,0.8146,3139.6,3139.1,0.47618338]
[1731194311621,0.8146,3139.6,3139.2,3.08554159]
[1731194311927,0.8146,3139.6,3139.4,0.47618338]
[1731194312118,0.8146,3139.6,3139.3,0.47618338]
[1731194312315,0.8146,3139.6,3139.2,0.47618338]
[1731194312628,0.8146,3139.6,3139.3,0.47618338]
[1731194312931,0.8146,3139.6,3139.4,0.57142006]
[1731194313103,0.8146,3139.6,3139.3,0.57142006]
[1731194313104,1.3696,3139.6,3139.3,0.57142006]
[1731194313530,1.3696,3139.6,3139.5,0.47574672]
[1731194314036,1.3696,3139.6,3139.3,0.57142006]
[1731194314190,1.3696,3139.6,3139.4,0.57142006]
[1731194314394,1.3696,3139.6,3139.3,0.57142006]
[1731194314595,1.3696,3139.6,3139.2,3.08554159]
[1731194314924,1.3696,3139.6,3139.4,0.57070901]
[1731194315124,0.555,3139.6,3139.3,1.14138668]
[1731194315431,1.11,3139.6,3139.5,6.88554159]
[1731194315635,1.11,3139.6,3139.5,8.06991572]
[1731194315932,1.11,3139.6,3139.5,11.59747719]
[1731194316135,1.11,3139.6,3139.5,8.00588933]
[1731194316392,10.08115818,3140.0,3139.5,2.04013611]
[1731194316511,10.08115818,3140.0,3139.6,3.57034774]
[1731194316842,10.08115818,3140.0,3139.7,0.57034774]
[1731194316995,10.08115818,3140.0,3139.8,0.57034774]
[1731194317195,10.08115818,3140.0,3139.6,3.57034774]
[1731194317400,10.63615818,3140.0,3139.8,3.08554159]
[1731194317708,10.63615818,3140.0,3139.9,3.57034774]
[1731194318119,10.63615818,3140.0,3139.9,3.0]
[1731194318302,10.63615818,3140.0,3139.9,3.57057885]
[1731194319110,10.63615818,3140.0,3139.8,3.08554159]
[1731194319311,11.19115818,3140.0,3139.8,3.08554159]
[1731194319520,11.19115818,3140.0,3139.8,3.65612044]
[1731194319842,11.19115818,3140.0,3139.9,3.0]
[1731194320658,11.19115818,3140.0,3139.9,3.57057885]
[1731194321433,11.74615818,3140.0,3139.9,3.57057885]
[1731194321937,11.74615818,3140.0,3139.9,3.0]
[1731194322141,11.74615818,3140.0,3139.9,3.57057885]
[1731194322513,11.74615818,3140.0,3139.9,0.57057885]
[1731194322716,11.74615818,3140.0,3139.6,3.57057885]
[1731194322915,11.74615818,3140.0,3139.7,0.57057885]
[1731194323110,11.74615818,3140.0,3139.8,0.57057885]
[1731194323440,11.74615818,3140.0,3139.7,0.57057885]
[1731194323617,12.30115818,3140.0,3139.8,0.57057885]
[1731194323817,12.30115818,3140.0,3139.7,0.57057885]
[1731194324380,12.30115818,3140.0,3139.6,3.0]
[1731194324381,12.30115818,3140.0,3139.8,0.57057885]
[1731194324687,12.30115818,3140.0,3139.7,0.57057885]
[1731194324895,12.30115818,3140.0,3139.8,0.57057885]
[1731194325047,12.30115818,3140.0,3139.6,3.0]
[1731194325243,12.30115818,3140.0,3139.6,3.75161785]
[1731194325479,12.30115818,3140.0,3139.7,0.57113058]
[1731194325685,12.85615818,3140.0,3139.8,0.57113058]
[1731194325890,12.85615818,3140.0,3139.9,0.57113058]
[1731194326181,12.85615818,3140.0,3139.7,0.57113058]
[1731194326482,12.85615818,3140.0,3139.8,0.57113058]
[1731194326686,12.85615818,3140.0,3139.7,0.57113058]
[1731194327145,12.85615818,3140.0,3139.8,0.57113058]
[1731194327482,0.751,3139.9,3139.6,3.0]
[1731194327696,1.36071582,3139.8,3138.8,3.08554159]
[1731194327996,1.306,3139.9,3139.1,3.08554159]
[1731194328306,1.306,3139.9,3139.7,0.47620778]
[1731194329070,1.306,3139.9,3139.7,0.47624188]
[1731194329498,1.306,3139.9,3139.8,0.47624188]
[1731194329866,1.861,3139.9,3139.7,0.47624188]
[1731194330279,3.33271582,3139.9,3139.7,0.47624188]
[1731194331380,3.33271582,3139.9,3139.2,3.0]
[1731194331706,3.33271582,3139.9,3138.7,3.88554159]
[1731194331900,3.89771582,3139.9,3139.7,0.47651926]
[1731194332107,2.4263874,3139.8,3139.7,0.47651926]
[1731194332402,2.4263874,3139.8,3138.7,3.08554159]
[1731194332771,2.4263874,3139.8,3138.8,0.63451234]
[1731194333105,2.4263874,3139.8,3138.8,3.63451234]
[1731194333600,0.7668,3139.7,3138.8,3.63451234]
[1731194333805,0.7668,3139.5,3138.8,3.0]
[1731194334103,0.7668,3139.5,3138.5,3.0]
[1731194334403,0.7668,3139.5,3138.6,1.16766519]
[1731194334706,0.7668,3139.5,3139.1,0.47698805]
[1731194335081,0.7668,3139.5,3139.0,0.47698805]
[1731194336006,1.3218,3139.5,3139.0,0.47698805]
[1731194336421,1.3218,3139.5,3139.1,0.28603267]
[1731194336608,1.3218,3139.5,3139.2,0.28603267]
[1731194336911,1.3218,3139.5,3139.3,0.28603267]
[1731194336912,0.7868,3139.4,3139.3,0.28603267]
[1731194337286,0.7768,3139.2,3139.1,0.28603267]
[1731194337473,0.7768,3139.2,3138.5,0.97228122]
[1731194337669,0.7768,3139.2,3138.6,0.51476585]
[1731194337892,0.7768,3139.2,3138.7,0.28603267]
[1731194338094,0.7668,3139.1,3138.8,0.28603267]
[1731194338295,0.7668,3139.1,3138.9,0.28603267]
[1731194338496,0.7668,3139.1,3138.5,0.28603267]
[1731194338834,0.7668,3139.1,3138.2,0.45751537]
[1731194338835,0.7668,3139.1,3138.6,0.28603267]
[1731194339015,0.7668,3139.1,3138.3,0.22858074]
[1731194339310,0.7668,3139.1,3138.4,0.28574146]
[1731194339611,0.7668,3139.1,3138.5,0.28574146]
[1731194339805,0.7668,3139.1,3138.6,0.28574146]
[1731194340010,0.7668,3139.1,3138.7,0.28574146]
[1731194340314,0.7668,3139.0,3138.5,0.5143222]
[1731194340473,0.7668,3139.0,3138.3,0.22858074]
[1731194340673,0.95548,3139.0,3138.2,0.68576708]
[1731194341283,0.95548,3139.0,3137.9,0.62869369]
[1731194341487,0.95548,3139.0,3138.3,0.22863612]
[1731194342003,0.95548,3139.0,3138.2,0.68589935]
[1731194342411,1.51048,3139.0,3138.2,0.68589935]
[1731194342619,0.7668,3138.8,3138.2,0.68589935]
[1731194344613,1.3218,3138.8,3138.2,0.68589935]
[1731194344813,1.3218,3138.8,3138.1,3.08554159]
[1731194345322,1.3218,3138.8,3138.2,0.22830021]
[1731194345510,1.3218,3138.8,3138.2,0.68556344]
[1731194345710,1.5502028,3138.8,3138.2,0.68556344]
[1731194346137,0.555,3138.8,3138.7,3.08554159]
[1731194346302,0.555,3138.8,3138.7,3.75586168]
[1731194346503,0.555,3138.8,3138.7,3.77110503]
[1731194346806,1.11,3138.8,3138.7,3.77110503]
[1731194347010,1.11,3138.8,3138.7,4.14821553]
[1731194347835,1.11,3138.8,3138.7,7.14821553]
[1731194348139,1.11,3138.8,3138.7,6.6909523]
[1731194348304,1.11,3138.8,3138.7,7.14687146]
[1731194348838,1.665,3138.8,3138.7,6.46265209]
[1731194349036,1.665,3138.8,3138.7,8.1274581]
[1731194349243,0.555,3139.0,3138.7,7.9209581]
[1731194349543,0.555,3139.5,3139.2,3.7665]
[1731194349736,0.555,3139.5,3139.4,6.08554159]
[1731194350035,0.555,3139.5,3139.4,11.17201237]
[1731194350248,1.20890001,3139.9,3139.7,0.55]
[1731194350430,1.20890001,3139.9,3139.8,6.76997078]
[1731194350617,1.20890001,3139.9,3139.8,7.57358306]
[1731194350946,1.76390001,3139.9,3139.8,0.68442919]
[1731194351237,1.76390001,3139.9,3139.7,0.22814306]
[1731194351415,1.76390001,3139.9,3139.6,0.45628613]
[1731194351740,1.76390001,3139.9,3139.3,0.68438704]
[1731194351940,1.54346485,3139.8,3139.3,3.3136706]
[1731194352143,1.54346485,3139.8,3139.4,0.68438704]
[1731194352833,0.8015,3139.7,3139.4,0.45625803]
[1731194353139,0.8015,3139.7,3139.1,0.68479574]
[1731194354645,0.8015,3139.7,3139.3,3.08554159]
[1731194354821,0.555,3139.8,3139.6,3.08554159]
[1731194355024,0.555,3139.7,3139.6,3.08554159]
[1731194355344,0.555,3139.7,3139.6,3.31392194]
[1731194355513,0.555,3139.7,3139.6,3.77069084]
[1731194355844,0.555,3139.7,3139.6,0.68514925]
[1731194356147,0.555,3139.7,3139.6,0.22838035]
[1731194356354,0.555,3139.7,3139.5,0.22838035]
[1731194356943,0.84239,3139.7,3139.5,0.22838035]
[1731194357247,0.8015,3139.6,3138.8,3.08554159]
[1731194357458,0.8115,3139.5,3138.9,0.68539588]
[1731194357611,0.8015,3139.1,3138.9,0.22862698]
[1731194357818,0.8015,3139.1,3138.4,0.4567689]
[1731194358128,0.8015,3139.1,3138.2,0.4567689]
[1731194358439,0.8015,3139.1,3138.3,3.54231049]
[1731194358650,0.8015,3139.1,3138.4,0.68539588]
[1731194358952,0.8015,3139.1,3138.6,3.08554159]
[1731194359141,1.3565,3139.1,3138.7,0.22880858]
[1731194359318,1.3565,3139.1,3138.7,0.68557748]
[1731194359516,1.3565,3139.1,3138.8,0.22880858]
[1731194360037,1.3565,3139.1,3138.6,0.4567689]
[1731194360451,1.3565,3139.1,3138.5,0.22880858]
[1731194360750,1.3565,3139.1,3138.6,0.45767231]
[1731194361490,1.9115,3139.1,3138.6,0.45767231]
[1731194361664,0.555,3139.8,3138.6,0.45767231]
[1731194361665,9.81074991,3140.0,3139.4,0.8424]
[1731194361815,9.81074991,3140.0,3138.7,1.313725]
[1731194361816,1.24025588,3140.0,3139.9,5.14189135]
[1731194362015,0.555,3141.0,3140.0,3.55]
[1731194362241,0.555,3141.0,3140.2,0.55]
[1731194362521,0.555,3141.0,3140.3,0.68648089]
[1731194362751,0.555,3141.0,3140.4,3.73949135]
[1731194363051,0.555,3141.0,3140.5,3.68488803]
[1731194363256,0.555,3141.0,3140.6,0.68488803]
[1731194363453,1.11,3141.0,3140.6,0.68488803]
[1731194364241,1.11,3141.0,3140.6,0.22880858]
[1731194365449,1.11,3141.0,3140.9,3.0]
[1731194365450,1.665,3141.0,3140.9,3.0]
[1731194365925,1.665,3141.0,3140.9,3.45498602]
[1731194366354,1.665,3141.0,3140.9,3.51865642]
[1731194366661,1.665,3141.0,3140.9,3.45498602]
[1731194367561,2.22,3141.0,3140.9,3.45498602]
[1731194369426,2.22,3141.0,3140.9,3.0]
[1731194369655,2.775,3141.0,3140.9,3.45403893]
[1731194369869,2.775,3141.0,3140.9,3.85086393]
[1731194370066,2.775,3141.0,3140.9,4.38331153]
[1731194370355,2.05904455,3141.0,3140.9,5.21571153]
[1731194370946,2.05904455,3141.0,3140.9,5.21532083]
[1731194371825,2.61404455,3141.0,3140.9,5.21532083]
[1731194373025,2.61404455,3141.0,3140.9,9.10798718]
[1731194373528,0.555,3142.1,3141.7,0.55]
[1731194373757,0.7729,3143.2,3142.0,8.06619135]
[1731194373985,0.7729,3143.2,3142.5,3.73949135]
[1731194374160,0.7729,3143.2,3142.5,7.19313958]
[1731194375334,0.7729,3143.2,3142.5,7.74313958]
[1731194375970,0.7729,3143.2,3142.5,7.19313958]
[1731194376339,1.11,3142.6,3142.5,7.19313958]
[1731194378374,1.665,3142.6,3142.5,7.19313958]
[1731194378864,1.665,3142.6,3142.5,7.74313958]
[1731194379254,1.665,3142.6,3142.5,7.7413022]
[1731194379667,1.665,3142.6,3142.5,7.28949135]
[1731194379850,1.665,3142.6,3142.5,7.7410992]
[1731194380052,1.665,3142.6,3142.5,7.1910992]
[1731194380461,2.22,3142.6,3142.5,7.1910992]
[1731194381385,2.22,3142.6,3142.5,9.0302468]
[1731194382573,2.775,3142.6,3142.5,9.0302468]
[1731194383387,1.38373678,3142.6,3142.5,9.02960119]
[1731194383761,0.38997793,3142.6,3142.5,9.02960119]
[1731194384659,0.94497793,3142.6,3142.5,9.02960119]
[1731194384996,0.94497793,3142.6,3142.5,8.25290119]
[1731194385209,0.555,3143.5,3143.0,10.99002207]
[1731194385210,0.7729,3143.4,3143.0,10.99002207]
[1731194385375,0.555,3143.5,3143.1,0.45096224]
[1731194385699,0.555,3143.5,3143.2,0.45096224]
[1731194385857,0.555,3143.5,3143.3,0.45096224]
[1731194386056,0.555,3143.5,3142.8,4.51619135]
[1731194386057,0.555,3143.5,3142.9,0.06362835]
[1731194386292,0.505,3143.5,3143.4,0.45135821]
[1731194386890,1.06,3143.5,3143.4,0.45135821]
[1731194389002,0.89954753,3143.5,3143.4,1.22805821]
[1731194389312,0.555,3143.8,3143.7,0.7767]
[1731194389598,0.555,3144.1,3143.8,0.55]
[1731194389773,0.555,3144.1,3143.9,0.06360624]
[1731194390090,0.555,3144.1,3144.0,0.45192819]
[1731194390292,0.555,3144.1,3144.0,1.00192819]
[1731194391005,0.555,3144.1,3144.0,1.46111983]
[1731194391296,1.11,3144.1,3144.0,2.24781983]
[1731194391461,1.11,3144.1,3144.0,2.23781983]
[1731194392682,1.11,3144.1,3144.0,2.24781983]
[1731194392903,1.11,3144.1,3144.0,2.25838855]
[1731194393265,1.665,3144.1,3144.0,2.25838855]
[1731194393673,0.67175275,3144.1,3144.0,2.24838855]
[1731194393872,0.67175275,3144.1,3144.0,2.25838855]
[1731194394073,0.67175275,3144.1,3144.0,2.23838855]
[1731194394296,0.67175275,3144.1,3144.0,1.23589164]
[1731194394492,0.67175275,3144.1,3144.0,1.68850677]
[1731194395467,1.22675275,3144.1,3144.0,2.23850677]
[1731194395694,1.22675275,3144.1,3144.0,8.97799812]
[1731194396607,1.22675275,3144.1,3144.0,8.97811627]
[1731194396897,1.22675275,3144.1,3144.0,8.98811627]
[1731194397117,1.22675275,3144.1,3144.0,8.99811627]
[1731194397613,1.78175275,3144.1,3144.0,8.99811627]
[1731194399371,0.555,3145.0,3144.6,0.01]
[1731194399570,0.555,3145.0,3144.9,7.28949135]
[1731194399880,0.555,3145.0,3144.9,7.74222463]
[1731194400080,0.555,3145.0,3144.9,7.35307725]
[1731194400279,0.555,3145.0,3144.9,8.15407725]
[1731194400505,0.555,3146.0,3145.1,0.01]
[1731194400808,0.555,3146.0,3145.3,7.28949135]
[1731194401311,0.555,3146.0,3145.3,6.62142663]
[1731194401602,0.555,3146.0,3145.3,7.42242663]
[1731194401914,1.11,3145.4,3145.3,7.95047253]
[1731194402114,0.555,3146.0,3145.3,7.95047253]
[1731194402115,0.555,3146.0,3145.7,0.01]
[1731194402409,0.555,3146.0,3145.8,4.42242663]
[1731194402575,0.555,3146.0,3145.8,7.42242663]
[1731194403295,0.555,3146.0,3145.5,3.72245358]
[1731194403609,1.3653,3146.0,3145.6,3.0]
[1731194403978,3.02910635,3145.9,3145.1,3.72245358]
[1731194404381,1.56985796,3145.9,3145.8,0.811]
[1731194404686,0.23585515,3146.0,3145.8,0.620894]
[1731194404888,0.23585515,3146.0,3145.9,4.23316914]
[1731194405111,0.23585515,3146.0,3145.3,0.01]
[1731194405112,0.23585515,3146.0,3145.5,3.72245358]
[1731194405602,0.23585515,3146.0,3145.6,3.0]
[1731194405921,0.23585515,3146.0,3145.6,3.57429097]
[1731194406092,0.79085515,3146.0,3145.6,3.57429097]
[1731194406298,0.79085515,3146.0,3145.7,0.51071556]
[1731194407014,0.79085515,3146.0,3145.6,3.40282089]
[1731194407320,0.79085515,3146.0,3145.7,0.47804889]
[1731194407506,0.79085515,3146.0,3145.6,2.924772]
[1731194407710,0.8103,3145.9,3145.6,2.924772]
[1731194407907,0.97041551,3145.9,3144.7,0.801]
[1731194408112,0.97041551,3145.9,3144.9,3.72245358]
[1731194408312,1.52541551,3145.9,3145.3,3.72245358]
[1731194408486,1.3653,3145.9,3145.3,4.20050247]
[1731194408930,1.3653,3145.9,3145.4,0.5416297]
[1731194409217,1.3653,3145.9,3145.7,3.72245358]
[1731194409416,1.3653,3145.9,3145.8,3.0]
[1731194409588,1.3653,3145.9,3145.3,3.72245358]
[1731194409789,1.3653,3145.9,3145.4,3.0]
[1731194409992,1.3653,3145.9,3144.9,3.72245358]
[1731194409993,0.8103,3145.8,3144.9,3.72245358]
[1731194410502,1.3653,3145.8,3144.9,3.72245358]
[1731194411488,1.3653,3145.8,3145.0,3.0]
[1731194411709,0.8103,3145.7,3145.0,3.0]
[1731194411910,0.8103,3145.7,3145.1,0.47804889]
[1731194412120,0.555,3145.8,3145.4,3.0]
[1731194412432,0.555,3145.8,3145.7,6.72245358]
[1731194412725,1.11,3145.8,3145.5,0.55]
[1731194412925,1.11,3145.8,3145.4,3.0]
[1731194413283,0.767,3145.7,3144.9,3.72245358]
[1731194413516,0.767,3145.7,3145.0,3.0]
[1731194414099,0.767,3145.7,3143.8,0.01]
[1731194414100,0.777,3145.7,3143.8,0.01]
[1731194414420,0.767,3145.5,3144.7,0.47804889]
[1731194415520,0.767,3145.5,3144.6,3.0]
[1731194416118,0.767,3145.5,3144.7,0.40018261]
[1731194416325,0.767,3145.5,3144.4,3.72245358]
[1731194416628,0.767,3145.5,3144.8,3.72245358]
[1731194416829,1.322,3145.5,3144.8,3.72245358]
[1731194417525,1.322,3145.5,3144.9,3.0]
[1731194417689,1.322,3145.5,3144.9,3.0635886]
[1731194418124,1.322,3145.5,3144.9,0.0635886]
[1731194418330,1.322,3145.5,3145.1,3.72245358]
[1731194418504,0.555,3145.5,3145.2,3.61358861]
[1731194418709,0.555,3145.5,3145.2,3.0]
[1731194418909,0.767,3145.4,3145.2,3.0]
[1731194419209,0.10911361,3145.4,3145.2,3.0]
[1731194421031,0.66411361,3145.4,3145.2,3.0]
[1731194422135,0.555,3145.4,3145.3,6.72245358]
[1731194422312,0.555,3145.4,3145.3,3.92215165]
[1731194422515,0.555,3145.4,3145.3,6.72245358]
[1731194423214,1.11,3145.4,3145.3,6.72245358]
[1731194423414,1.11,3145.4,3145.2,3.07250773]
[1731194423609,1.11,3145.4,3145.3,3.36473844]
[1731194424029,1.11,3145.4,3145.3,0.36473844]
[1731194424221,1.332,3145.4,3145.3,0.36473844]
[1731194424822,1.11,3145.4,3145.3,3.43724617]
[1731194425227,1.665,3145.4,3145.3,0.36473844]
[1731194426844,2.432,3145.4,3145.3,0.36473844]
[1731194427544,2.987,3145.4,3145.3,0.36473844]
[1731194427834,2.22,3145.4,3145.3,0.36473844]
[1731194428615,2.22,3145.4,3145.3,6.84509544]
[1731194429107,2.22,3145.4,3145.3,0.77258771]
[1731194429308,2.22,3145.4,3145.3,6.84509544]
[1731194429715,2.775,3145.4,3145.3,0.36473844]
[1731194430640,3.9305,3145.4,3145.3,0.36473844]
[1731194431843,4.4855,3145.4,3145.3,0.36473844]
[1731194432010,4.097,3145.4,3145.3,0.36473844]
[1731194432353,4.16121231,3145.4,3145.3,0.36473844]
[1731194432868,4.16121231,3145.4,3145.0,3.0]
[1731194433019,3.39421231,3145.4,3145.3,0.36426132]
[1731194433218,3.39421231,3145.4,3145.1,0.36426132]
[1731194433422,3.39421231,3145.4,3145.0,3.44884927]
[1731194433620,3.39421231,3145.4,3145.2,0.36442443]
[1731194433850,3.94921231,3145.4,3145.2,0.36442443]
[1731194434453,3.94921231,3145.4,3145.1,0.36442443]
[1731194434658,3.94921231,3145.4,3145.2,0.36442443]
[1731194434828,3.94921231,3145.4,3145.3,0.36442443]
[1731194435260,3.23424336,3145.4,3145.3,0.36442443]
[1731194435958,3.78924336,3145.4,3145.3,6.43693216]
[1731194436160,3.78924336,3145.4,3145.3,6.88578143]
[1731194436963,2.79627532,3145.4,3145.3,7.45510608]
[1731194437436,2.79627532,3145.4,3145.3,8.00510608]
[1731194438159,3.35127532,3145.4,3145.3,7.43578143]
[1731194439832,3.35127532,3145.4,3145.3,7.071357]
[1731194440253,3.35127532,3145.4,3145.3,6.88542073]
[1731194440480,3.90627532,3145.4,3145.3,6.88542073]
[1731194442579,4.46127532,3145.4,3145.3,6.88542073]
[1731194443831,4.46127532,3145.4,3145.3,0.36357678]
[1731194444047,4.46127532,3145.4,3145.1,0.36357678]
[1731194444333,4.46127532,3145.4,3145.2,0.36357678]
[1731194444632,4.46127532,3145.4,3145.3,6.43608451]
[1731194444859,5.01627532,3145.4,3145.3,6.43608451]
[1731194446037,6.43320285,3145.4,3145.3,0.36357678]
[1731194446236,6.43320285,3145.4,3145.3,0.47383212]
[1731194446674,6.43320285,3145.4,3145.2,0.47383212]
[1731194446969,6.98820285,3145.4,3145.2,0.47383212]
[1731194447170,6.98820285,3145.4,3145.3,0.56887637]
[1731194447378,6.98820285,3145.4,3145.1,0.56887637]
[1731194447668,6.98820285,3145.4,3145.2,0.56887637]
[1731194447972,6.98820285,3145.4,3145.3,0.56887637]
[1731194448158,6.98820285,3145.4,3145.2,0.56887637]
[1731194448348,6.98820285,3145.4,3145.3,0.56887637]
[1731194448544,6.98820285,3145.4,3145.1,0.56887637]
[1731194448749,6.98820285,3145.4,3145.3,0.47412402]
[1731194448954,7.55320285,3145.4,3145.3,0.24974128]
[1731194449276,0.8043,3144.7,3144.0,0.56887637]
[1731194449475,0.8043,3144.7,3144.1,0.56887637]
[1731194449771,0.8043,3144.5,3143.6,0.56887637]
[1731194450098,0.8043,3144.4,3143.7,1.01799719]
[1731194450274,0.8043,3144.4,3143.7,0.44884927]
[1731194450567,0.8043,3144.4,3143.7,1.01799719]
[1731194450779,0.8043,3144.4,3143.7,0.44884927]
[1731194450934,1.3593,3144.4,3143.7,1.01799719]
[1731194451137,0.87903464,3144.3,3143.5,0.36357678]
[1731194451339,0.01,3144.1,3143.3,0.44884927]
[1731194451598,0.01,3144.1,3143.2,0.36357678]
[1731194451599,0.8043,3144.0,3143.2,0.36357678]
[1731194451777,0.8043,3144.0,3143.1,3.07250773]
[1731194451987,0.01,3143.9,3143.1,3.07250773]
[1731194452270,0.8043,3143.8,3143.1,0.36357678]
[1731194452459,0.8043,3143.7,3142.9,0.36357678]
[1731194452665,0.8043,3143.7,3143.1,3.07250773]
[1731194452882,0.06447571,3143.6,3143.1,3.07250773]
[1731194453175,0.7713,3143.5,3142.7,3.07250773]
[1731194453473,0.7713,3143.5,3143.1,0.36348658]
[1731194453679,0.7713,3143.5,3143.0,3.07250773]
[1731194453834,0.7713,3143.5,3143.0,3.49302367]
[1731194454038,0.7713,3143.5,3143.1,0.3631287]
[1731194454235,0.7713,3143.5,3143.4,0.47243496]
[1731194454472,0.7713,3143.5,3143.4,0.94512786]
[1731194454678,0.7713,3143.5,3143.4,0.4726929]
[1731194455044,1.3263,3143.5,3143.4,0.4726929]
[1731194455466,1.38857949,3143.5,3143.4,0.4726929]
[1731194455770,1.38857949,3143.5,3143.1,3.0]
[1731194455954,0.61727949,3143.5,3143.4,0.47222081]
[1731194456156,0.555,3143.5,3143.4,0.47222081]
[1731194456359,0.555,3143.5,3143.3,0.47204725]
[1731194456991,0.555,3143.5,3143.4,0.47204725]
[1731194457195,1.11,3143.5,3143.4,0.47183752]
[1731194457594,1.17021146,3143.5,3143.1,3.42051594]
[1731194457907,1.17021146,3143.5,3143.4,0.47180431]
[1731194458558,1.17021146,3143.5,3143.4,0.8340252]
[1731194458762,1.17021146,3143.5,3143.4,0.83391787]
[1731194459206,1.94151146,3143.5,3143.4,0.83391787]
[1731194459502,2.49651146,3143.5,3143.2,0.47171167]
[1731194459656,2.49651146,3143.5,3143.0,0.83395804]
[1731194459860,2.49651146,3143.5,3143.1,0.47171167]
[1731194460060,2.49651146,3143.5,3143.3,0.47171167]
[1731194460691,2.49651146,3143.5,3143.1,3.0]
[1731194460692,1.72521146,3143.5,3143.2,0.36224637]
[1731194460997,1.72521146,3143.5,3143.4,0.47148003]
[1731194461292,1.72521146,3143.5,3143.4,6.07250773]
[1731194461497,2.28021146,3143.5,3143.4,6.90610667]
[1731194461655,2.28021146,3143.5,3143.3,0.47135257]
[1731194461860,2.28021146,3143.5,3143.2,0.47135257]
[1731194462060,0.7713,3143.4,3143.1,0.83338803]
[1731194462295,0.7713,3143.4,3142.9,0.47135257]
[1731194462500,0.05997939,3143.3,3143.2,0.42051594]
[1731194462658,2.22,3143.5,3143.2,0.89186851]
[1731194462867,0.05998729,3143.3,3143.1,0.83386098]
[1731194463063,2.22,3143.5,3143.1,0.83386098]
[1731194463421,2.22,3143.5,3141.8,3.07250773]
[1731194463422,0.01,3143.2,3141.8,3.07250773]
[1731194463697,0.7713,3142.9,3141.9,0.39384927]
[1731194463912,0.7813,3142.9,3141.8,3.07250773]
[1731194464194,0.7713,3142.7,3141.8,3.07250773]
[1731194464563,0.7713,3142.7,3141.8,3.466357]
[1731194464798,0.7713,3142.7,3141.8,3.07250773]
[1731194465001,0.7713,3142.7,3141.9,0.39384927]
[1731194465160,0.7713,3142.7,3141.9,3.39384927]
[1731194465365,0.7713,3142.7,3141.9,3.0]
[1731194466003,1.3263,3142.7,3141.9,3.0]
[1731194466417,0.7713,3142.6,3141.4,3.07250773]
[1731194466695,0.05967911,3142.5,3141.7,0.39384927]
[1731194466896,0.7813,3142.4,3141.7,0.39384927]
[1731194467106,0.7813,3142.4,3141.1,3.07250773]
[1731194467274,0.0596424,3142.3,3141.2,0.06366458]
[1731194467599,0.7713,3142.4,3141.2,3.45751385]
[1731194467808,0.05962843,3142.2,3141.2,3.45751385]
[1731194467970,1.3263,3142.4,3141.2,3.45751385]
[1731194468305,0.05960378,3142.3,3141.6,3.0]
[1731194468513,0.05960378,3142.3,3141.8,0.47182533]
[1731194468668,1.3263,3142.4,3142.0,0.47182533]
[1731194469009,1.3263,3142.4,3141.9,0.47182533]
[1731194469363,0.05958272,3142.3,3141.8,0.47182533]
[1731194469712,1.3263,3142.4,3141.8,0.47182533]
[1731194470069,1.8813,3142.4,3141.9,0.47182533]
[1731194470263,0.05959678,3142.3,3141.9,0.47182533]
[1731194470574,0.05959678,3142.3,3142.1,0.4724086]